[Event "POL-chT 2nd League Juniors 2020"]
[Site "Sypniewo"]
[Date "2020.10.23"]
[Round "1.1"]
[White "Zerebiec, Maurycy"]
[Black "Syrkiewicz, Michal"]
[Result "1-0"]
[ECO "A37"]
[WhiteElo "1917"]
[BlackElo "2127"]
[Annotator "ChessBase"]
[PlyCount "153"]
[EventDate "2020.10.23"]
[EventType "team-tourn"]
[EventCountry "POL"]
[SourceTitle "playchess.com"]
[Source "ChessBase"]
[SourceQuality "1"]
[TimeControl "5400+30"]

1. c4 {[%emt 0:00:00]} c5 {[%emt 0:00:00]} 2. Nc3 {[%emt 0:00:00]} Nc6 {[%emt 0:00:11]} 3. g3 {[%emt 0:00:00]} g6 {[%emt 0:00:20]} 4. Bg2 {[%emt 0:00:00]} Bg7 {[%emt 0:00:25]} 5. Nf3 {[%emt 0:00:16]} e6 {[%emt 0:00:35]} 6. d4 {[%emt 0:00:14]} cxd4 {[%emt 0:02:14]} 7. Nb5 {[%emt 0:00:19]} d5 {[%emt 0:01:04]} 8. cxd5 {[%emt 0:01:16]} Qa5+ {[%emt 0:01:37]} 9. Nd2 {[%emt 0:00:19]} Qxb5 {[%emt 0:01:19]} 10. dxc6 {[%emt 0:00:11]} Ne7 {[%emt 0:07:54]} 11. a4 {[%emt 0:09:30]} Qb4 {[%emt 0:08:55]} 12. b3 {[%emt 0:12:58]} Nxc6 {[%emt 0:06:43]} 13. Ba3 {[%emt 0:00:19]} Qa5 {[%emt 0:04:23]} 14. O-O {[%emt 0:05:00]} Bf8 {[%emt 0:11:56]} 15. Nc4 {[%emt 0:01:24]} Qd8 {[%emt 0:03:18]} 16. Bxf8 Kxf8 {[%emt 0:06:24]} 17. Bxc6 {[%emt 0:09:05]} bxc6 {[%emt 0:00:07]} 18. Qd2 {[%emt 0:02:08]} Kg7 {[%emt 0:06:48]} 19. Rfd1 {[%emt 0:00:27]} c5 {[%emt 0:00:37]} 20. Qf4 {[%emt 0:03:27]} f6 {[%emt 0:06:55]} 21. Rac1 {[%emt 0:03:07]} Ba6 {[%emt 0:07:15]} 22. Qd6 {[%emt 0:00:57]} Qxd6 {[%emt 0:04:32]} 23. Nxd6 {[%emt 0:00:16]} Bxe2 {[%emt 0:01:27]} 24. Rd2 {[%emt 0:00:02]} Bf3 {[%emt 0:01:55]} 25. Rxc5 {[%emt 0:00:53]} Rhd8 {[%emt 0:06:04]} 26. Rxd4 {[%emt 0:03:15]} Bd5 {[%emt 0:02:18]} 27. Rc7+ {[%emt 0:01:08]} Kg8 {[%emt 0:00:14]} 28. Ne4 {[%emt 0:02:09]} Rf8 {[%emt 0:03:08]} 29. Nc3 {[%emt 0:07:31]} Rf7 {[%emt 0:03:01]} 30. Nxd5 {[%emt 0:00:40]} exd5 {[%emt 0:00:24]} 31. Rxf7 {[%emt 0:00:09]} Kxf7 {[%emt 0:00:05]} 32. Rxd5 {[%emt 0:00:16]} Ke6 {[%emt 0:00:06]} 33. Rb5 {[%emt 0:00:06]} h5 {[%emt 0:00:29]} 34. Kg2 {[%emt 0:03:23]} Rc8 {[%emt 0:00:35]} 35. Ra5 {[%emt 0:01:31]} Rb8 {[%emt 0:00:23]} 36. Rxa7 {[%emt 0:00:24]} Rxb3 {[%emt 0:00:06]} 37. h4 {[%emt 0:00:17]} Ra3 {[%emt 0:00:16]} 38. a5 {[%emt 0:00:22]} Kf5 {[%emt 0:01:38]} 39. a6 {[%emt 0:00:50]} Ra1 {[%emt 0:00:56]} 40. Ra8 {[%emt 0:00:23]} Ra3 {[%emt 0:01:48]} 41. a7 {[%emt 0:01:51]} Ra1 {[%emt 0:00:19]} 42. Kf3 {[%emt 0:00:22]} Ra3+ {[%emt 0:00:06]} 43. Ke2 {[%emt 0:00:08]} Ra1 {[%emt 0:00:29]} 44. f3 {[%emt 0:01:13]} Ra3 {[%emt 0:00:24]} 45. Kd2 {[%emt 0:00:21]} Ra2+ {[%emt 0:00:14]} 46. Kc3 {[%emt 0:00:12]} Ra1 {[%emt 0:00:10]} 47. Kc4 {[%emt 0:00:31]} Rc1+ {[%emt 0:00:30]} 48. Kd5 {[%emt 0:00:13]} Rd1+ {[%emt 0:01:00]} 49. Kc6 {[%emt 0:00:07]} Rc1+ {[%emt 0:00:17]} 50. Kd6 {[%emt 0:00:24]} Rd1+ {[%emt 0:00:45]} 51. Ke7 {[%emt 0:00:06]} Ra1 {[%emt 0:00:38]} 52. Kf7 {[%emt 0:01:07]} Ra3 {[%emt 0:01:48]} 53. Kg7 {[%emt 0:00:12]} Ra1 {[%emt 0:00:31]} 54. Kh6 {[%emt 0:00:02]} Ra4 {[%emt 0:00:47]} 55. Rb8 {[%emt 0:00:49]} Rxa7 {[%emt 0:00:15]} 56. Rb5+ {[%emt 0:00:08]} Ke6 {[%emt 0:00:23]} 57. Kxg6 {[%emt 0:00:18]} Ra8 {[%emt 0:00:32]} 58. Kxh5 {[%emt 0:03:40]} Rg8 {[%emt 0:00:27]} 59. g4 {[%emt 0:00:45]} Rh8+ {[%emt 0:00:44]} 60. Kg6 {[%emt 0:00:03]} Rxh4 {[%emt 0:00:04]} 61. Rb6+ {[%emt 0:00:33]} Ke7 {[%emt 0:00:02]} 62. Rxf6 {[%emt 0:00:27]} Rh8 {[%emt 0:00:07]} 63. Kf5 {[%emt 0:00:40]} Rh3 {[%emt 0:00:31]} 64. f4 {[%emt 0:00:47]} Rg3 {[%emt 0:00:19]} 65. Ra6 {[%emt 0:00:08]} Rb3 {[%emt 0:00:11]} 66. Ra7+ {[%emt 0:00:16]} Kf8 {[%emt 0:00:03]} 67. Kg5 {[%emt 0:00:21]} Kg8 {[%emt 0:00:08]} 68. Rc7 {[%emt 0:00:22]} Ra3 {[%emt 0:00:06]} 69. Rb7 {[%emt 0:00:34]} Rc3 {[%emt 0:00:03]} 70. f5 {[%emt 0:00:10]} Ra3 {[%emt 0:00:05]} 71. Kg6 {[%emt 0:00:14]} Ra6+ {[%emt 0:00:01]} 72. f6 {[%emt 0:00:10]} Ra8 {[%emt 0:00:01]} 73. g5 {[%emt 0:00:20]} Rc8 {[%emt 0:00:03]} 74. Rg7+ {[%emt 0:00:24]} Kh8 {[%emt 0:00:05]} 75. Rh7+ {[%emt 0:00:02]} Kg8 {[%emt 0:00:05]} 76. f7+ {[%emt 0:00:07]} Kf8 {[%emt 0:00:02]} 77. Rh8+ {[%emt 0:00:05]} 1-0

[Event "POL-chT 2nd League Juniors 2020"]
[Site "Sypniewo"]
[Date "2020.10.23"]
[Round "1.1"]
[White "Twardowski, Hubert"]
[Black "Malik, Maciej"]
[Result "1/2-1/2"]
[ECO "B09"]
[WhiteElo "1912"]
[BlackElo "1671"]
[Annotator "ChessBase"]
[PlyCount "78"]
[EventDate "2020.10.23"]
[EventType "team-tourn"]
[EventCountry "POL"]
[SourceTitle "playchess.com"]
[Source "ChessBase"]
[SourceQuality "1"]
[TimeControl "5400+30"]

1. e4 d6 2. d4 Nf6 3. Nc3 g6 4. f4 Bg7 5. Nf3 O-O 6. Be2 Na6 7. O-O c5 8. d5 Nc7 9. a4 a6 10. Bc4 Nd7 11. Qe2 Rb8 12. a5 b6 13. axb6 Nxb6 14. Bb3 Bd7 15. Be3 Bb5 16. Nxb5 axb5 17. c3 Ra8 18. Rfd1 Qd7 19. h4 Qg4 20. Qf2 Rfc8 21. Rdc1 Qd7 22. h5 Rxa1 23. Rxa1 Ra8 24. Rb1 Na4 25. hxg6 hxg6 26. Qh4 c4 27. Bc2 e6 28. dxe6 Qxe6 29. Bd4 f6 30. f5 g5 31. fxe6 gxh4 32. Nxh4 Nxe6 33. Ra1 Nxd4 34. cxd4 Nb6 35. Rxa8+ Nxa8 36. Nf5 Bf8 37. Bd1 Nb6 38. Ne3 Bh6 39. Nf5 Bc1 1/2-1/2

[Event "POL-chT 2nd League Juniors 2020"]
[Site "Sypniewo"]
[Date "2020.10.23"]
[Round "1.2"]
[White "Michalak, Leonard"]
[Black "Topola, Rafal"]
[Result "0-1"]
[ECO "B13"]
[WhiteElo "1482"]
[BlackElo "1827"]
[Annotator "NA RC"]
[PlyCount "74"]
[EventDate "2020.10.23"]
[EventType "team-tourn"]
[EventCountry "POL"]
[SourceTitle "playchess.com"]
[Source "ChessBase"]
[SourceQuality "1"]
[TimeControl "5400+30"]

1. e4 {[%emt 0:00:00]} c6 {[%emt 0:00:00]} 2. d4 {[%emt 0:00:00]} d5 {[%emt 0:00:00]} 3. exd5 {[%emt 0:00:24]} cxd5 {[%emt 0:00:00]} 4. Bd3 {[%emt 0:00:20]} Nc6 {[%emt 0:00:00]} 5. c3 {[%emt 0:00:19]} Nf6 {[%emt 0:00:00]} 6. Bf4 {[%emt 0:00:23]} Bg4 {[%emt 0:00:30]} 7. Qb3 {[%emt 0:01:23]} Qc8 {[%emt 0:00:44]} 8. Nd2 {[%emt 0:00:31]} e6 {[%emt 0:00:08]} 9. Ngf3 {[%emt 0:00:51]} Be7 {[%emt 0:00:11]} 10. O-O {[%emt 0:00:30]} O-O {[%emt 0:00:49]} 11. Rfe1 {[%emt 0:01:01]} Bh5 {[%emt 0:00:23]} 12. Ne5 {[%emt 0:03:54]} Nxe5 {[%emt 0:02:12] B13: Caro-Kann: Exchange Variation and Panov-Botvinnik Attack.} 13. dxe5 {[%emt 0:04:14]} Nd7 {[%emt 0:00:06]} 14. Qc2 {[%emt 0:02:20]} Bg6 {[%emt 0:00:09] [#]} 15. a3 $146 {[%emt 0:00:30]} ({Predecessor:} 15. Bxg6 fxg6 16. Bg3 Bc5 17. Qb3 Nb6 18. Rac1 Nc4 19. Nf3 Qd7 20. Qc2 Rac8 21. b3 {1-0 (44) Lukasiewicz,K (2343)-Goluch,P (2373) Polanica Zdroj 2020}) 15... Qc6 {[%emt 0:01:43]} 16. Nf3 {[%emt 0:04:47]} Bxd3 {[%emt 0:01:42]} 17. Qxd3 {[%emt 0:00:37]} Nc5 {[%emt 0:00:04]} 18. Qc2 {[%emt 0:01:12]} Rac8 {[%emt 0:02:58]} 19. Nd4 {[%emt 0:01:34]} Qa4 {[%emt 0:02:30]} 20. Qd2 {[%emt 0:14:04]} Rfd8 {[%emt 0:04:41]} 21. Bg5 {[%emt 0:07:58]} Nb3 {[%emt 0:15:44]} 22. Nxb3 {[%emt 0:01:20]} Bxg5 {[%emt 0:00:05]} 23. Qxg5 {[%emt 0:01:47]} Qxb3 {[%emt 0:00:02]} 24. Qd2 {[%emt 0:03:45]} h6 {[%emt 0:02:33]} 25. Rab1 {[%emt 0:01:43]} Rc4 {[%emt 0:02:25]} 26. Qd1 $15 {[%emt 0:01:29]} Qb6 {[%emt 0:00:49]} 27. Qc2 {[%emt 0:03:19]} Rdc8 {[%emt 0:00:08]} 28. Re3 {[%emt 0:02:01]} d4 {[%emt 0:02:44]} 29. Rd3 {[%emt 0:00:47]} dxc3 {[%emt 0:00:10]} 30. b3 {[%emt 0:05:13]} R4c5 {[%emt 0:02:00]} 31. Re1 {[%emt 0:01:25]} Qc7 {[%emt 0:02:04]} 32. f4 {[%emt 0:01:14]} Qb6 {[%emt 0:02:22]} 33. Kh1 {[%emt 0:00:48]} Qc6 {[%emt 0:04:38]} 34. Red1 {[%emt 0:00:44]} Rd5 {[%emt 0:00:11]} 35. Rxd5 {[%emt 0:00:54]} exd5 {[%emt 0:00:01]} 36. Rd3 {[%emt 0:02:00]} Qa6 {[%emt 0:01:23]} 37. a4 {[%emt 0:00:38]} Qxd3 0-1

[Event "POL-chT 2nd League Juniors 2020"]
[Site "Sypniewo"]
[Date "2020.10.23"]
[Round "1.3"]
[White "Nowak, Filip"]
[Black "Motyl, Mateusz"]
[Result "1-0"]
[ECO "B01"]
[WhiteElo "1871"]
[BlackElo "1109"]
[Annotator "NA RC"]
[PlyCount "47"]
[EventDate "2020.10.23"]
[EventType "team-tourn"]
[EventCountry "POL"]
[SourceTitle "playchess.com"]
[Source "ChessBase"]
[SourceQuality "1"]
[TimeControl "5400+30"]

1. e4 {[%emt 0:00:00]} d5 {[%emt 0:00:00]} 2. exd5 {[%emt 0:00:00]} Qxd5 {[%emt 0:00:05]} 3. Nc3 {[%emt 0:00:00]} Qd8 {[%emt 0:00:08]} 4. d4 {[%emt 0:00:41]} Nf6 {[%emt 0:01:51]} 5. Bf4 {[%emt 0:05:07]} c6 {[%emt 0:04:12]} 6. Qd2 {[%emt 0:02:16]} Bf5 {[%emt 0:04:15]} 7. Nf3 {[%emt 0:01:06]} e6 {[%emt 0:02:43]} 8. O-O-O Bd6 {[%emt 0:01:46]} 9. Bg5 {[%emt 0:07:28]} Nbd7 {[%emt 0:01:55]} 10. Kb1 {[%emt 0:02:05]} h6 {[%emt 0:01:59]} 11. Bh4 {[%emt 0:01:42]} O-O {[%emt 0:02:52]} 12. h3 {[%emt 0:01:51]} h5 {[%emt 0:01:32]} 13. Bd3 {[%emt 0:08:59]} Bxd3 {[%emt 0:02:17]} 14. Qxd3 {[%emt 0:00:02]} g6 {[%emt 0:00:17]} 15. g4 {[%emt 0:03:36]} Qc7 {[%emt 0:02:28]} 16. Ne4 {[%emt 0:05:20]} hxg4 {[%emt 0:03:24]} 17. hxg4 {[%emt 0:02:11]} Nxg4 {[%emt 0:00:32]} 18. Rdg1 {[%emt 0:00:49]} Nh6 {[%emt 0:01:24]} 19. Nxd6 {[%emt 0:00:19]} Qxd6 {[%emt 0:00:49]} 20. Rxg6+ {[%emt 0:00:25]} fxg6 {[%emt 0:00:09]} 21. Qxg6+ {[%emt 0:00:05]} Kh8 {[%emt 0:00:22]} 22. Qxh6+ {[%emt 0:00:07]} Kg8 {[%emt 0:00:07]} 23. Qg6+ {[%emt 0:00:09]} Kh8 {[%emt 0:00:16]} 24. Bf6# {[%emt 0:00:13]} 1-0

[Event "POL-chT 2nd League Juniors 2020"]
[Site "Sypniewo"]
[Date "2020.10.23"]
[Round "1.3"]
[White "Trzebinski, Patryk"]
[Black "Karut, Kacper"]
[Result "1-0"]
[ECO "B89"]
[WhiteElo "1837"]
[BlackElo "1657"]
[Annotator "NA RC"]
[PlyCount "43"]
[EventDate "2020.10.23"]
[EventType "team-tourn"]
[EventCountry "POL"]
[SourceTitle "playchess.com"]
[Source "ChessBase"]
[SourceQuality "1"]
[TimeControl "5400+30"]

1. e4 {[%emt 0:00:00]} c5 {[%emt 0:00:00]} 2. Nf3 {[%emt 0:00:00]} d6 {[%emt 0:00:00]} 3. d4 {[%emt 0:00:00]} cxd4 {[%emt 0:00:00]} 4. Nxd4 {[%emt 0:00:00]} Nf6 {[%emt 0:00:00]} 5. Nc3 {[%emt 0:00:06]} Nc6 {[%emt 0:00:00]} 6. Bc4 {[%emt 0:00:20]} e6 {[%emt 0:00:27]} 7. Be3 {[%emt 0:00:42]} a6 {[%emt 0:04:05]} 8. Bb3 {[%emt 0:00:08]} Bd7 {[%emt 0:00:59]} 9. O-O {[%emt 0:00:43]} Be7 {[%emt 0:01:47]} 10. f4 {[%emt 0:00:19]} O-O {[%emt 0:01:51]} 11. Qf3 {[%emt 0:00:12]} Qa5 {[%emt 0:10:28]} 12. Rad1 {[%emt 0:01:09]} Rad8 {[%emt 0:05:27]} 13. f5 {[%emt 0:01:09]} Nxd4 {[%emt 0:08:25]} 14. Bxd4 {[%emt 0:00:34]} exf5 {[%emt 0:08:19]} 15. Nd5 {[%emt 0:13:47]} Nxd5 {[%emt 0:06:37]} 16. Bxd5 {[%emt 0:00:27]} Be6 $16 {[%emt 0:17:24]} 17. Bxg7 {[%emt 0:12:19]} Kxg7 {[%emt 0:05:33]} 18. exf5 {[%emt 0:00:24]} Bxd5 {[%emt 0:01:17]} 19. f6+ {[%emt 0:00:36]} Kh8 {[%emt 0:02:02]} 20. Rxd5 {[%emt 0:00:17]} Qb6+ {[%emt 0:06:36]} 21. Kh1 {[%emt 0:00:14]} Qc7 {[%emt 0:00:43]} 22. Rh5 {[%emt 0:00:16]} 1-0

[Event "POL-chT 2nd League Juniors 2020"]
[Site "Sypniewo"]
[Date "2020.10.23"]
[Round "1.4"]
[White "Pycinski, Wladyslaw"]
[Black "Malinowski, Szymon"]
[Result "1-0"]
[ECO "B13"]
[WhiteElo "1149"]
[BlackElo "1740"]
[Annotator "NA"]
[PlyCount "63"]
[EventDate "2020.10.23"]
[EventType "team-tourn"]
[EventCountry "POL"]
[SourceTitle "playchess.com"]
[Source "ChessBase"]
[SourceQuality "1"]
[TimeControl "5400+30"]

1. e4 c6 {[%emt 0:00:00]} 2. d4 d5 3. exd5 {[%emt 0:03:16]} cxd5 {[%emt 0:01:12]} 4. Nf3 {[%emt 0:00:12]} Nc6 {[%emt 0:00:50]} 5. Bb5 {[%emt 0:00:23]} Bg4 {[%emt 0:00:27]} 6. O-O {[%emt 0:01:17]} Qc7 {[%emt 0:00:49]} 7. Bg5 e6 {[%emt 0:02:21]} 8. Re1 {[%emt 0:10:35]} Nf6 {[%emt 0:01:55]} 9. Nbd2 {[%emt 0:02:47]} a6 {[%emt 0:03:00]} 10. Bxc6+ {[%emt 0:01:30]} bxc6 {[%emt 0:00:10]} 11. Nf1 {[%emt 0:01:09]} Bd6 {[%emt 0:02:34]} 12. Ng3 {[%emt 0:02:56]} h6 {[%emt 0:08:29]} 13. Bxf6 {[%emt 0:06:02]} gxf6 {[%emt 0:00:14]} 14. c4 {[%emt 0:00:18]} Bxg3 {[%emt 0:05:27]} 15. fxg3 {[%emt 0:05:12]} Qb6 {[%emt 0:12:29]} 16. cxd5 {[%emt 0:03:49]} cxd5 {[%emt 0:00:15]} 17. Qa4+ {[%emt 0:00:48]} Qb5 {[%emt 0:00:14]} 18. Qa3 {[%emt 0:01:26]} Rc8 {[%emt 0:05:54]} 19. Rac1 {[%emt 0:03:12]} Kd7 {[%emt 0:00:45]} 20. Nd2 {[%emt 0:06:31]} Rhd8 {[%emt 0:32:22]} 21. Nb3 {[%emt 0:04:45]} Ke8 {[%emt 0:00:44]} 22. Nc5 {[%emt 0:00:46]} a5 {[%emt 0:00:15]} 23. Rf1 {[%emt 0:02:25]} f5 {[%emt 0:02:25]} 24. Rfe1 {[%emt 0:01:06]} Qb4 {[%emt 0:02:35]} 25. Qe3 {[%emt 0:01:23]} Rc6 {[%emt 0:02:13]} 26. b3 {[%emt 0:02:39]} Rdd6 {[%emt 0:00:50]} 27. a3 {[%emt 0:00:46]} Qxa3 {[%emt 0:04:13]} 28. Qxh6 {[%emt 0:00:19]} Qb4 {[%emt 0:01:11]} 29. Qf4 {[%emt 0:04:33]} Ke7 {[%emt 0:01:59]} 30. Kh1 {[%emt 0:01:21]} Ke8 {[%emt 0:02:59]} 31. Qe5 {[%emt 0:01:25]} Ke7 {[%emt 0:00:48]} 32. h3 {[%emt 0:01:36]} 1-0

[Event "POL-chT 2nd League Juniors 2020"]
[Site "Sypniewo"]
[Date "2020.10.23"]
[Round "1.4"]
[White "Seo, Ian"]
[Black "Zimny, Jakub"]
[Result "0-1"]
[ECO "B40"]
[WhiteElo "1031"]
[BlackElo "1569"]
[Annotator "NA"]
[PlyCount "158"]
[EventDate "2020.10.23"]
[EventType "team-tourn"]
[EventCountry "POL"]
[SourceTitle "playchess.com"]
[Source "ChessBase"]
[SourceQuality "1"]
[TimeControl "5400+30"]

1. e4 {[%emt 0:00:00]} c5 {[%emt 0:00:00]} 2. Nf3 {[%emt 0:00:02]} e6 {[%emt 0:00:00]} 3. c3 {[%emt 0:00:45]} d5 {[%emt 0:01:11]} 4. Bb5+ {[%emt 0:01:25]} Nc6 {[%emt 0:01:56]} 5. exd5 {[%emt 0:02:06]} Qxd5 {[%emt 0:00:11]} 6. O-O {[%emt 0:01:16]} Nf6 {[%emt 0:02:06]} 7. d4 {[%emt 0:02:28]} Be7 {[%emt 0:03:58]} 8. c4 {[%emt 0:02:00]} Qd6 {[%emt 0:02:29]} 9. Be3 {[%emt 0:02:30]} Ng4 {[%emt 0:08:19]} 10. Nc3 {[%emt 0:05:41]} cxd4 {[%emt 0:06:41]} 11. Qxd4 {[%emt 0:02:51]} Nxe3 {[%emt 0:03:08]} 12. Qxe3 {[%emt 0:01:12]} O-O {[%emt 0:00:28]} 13. Rfd1 {[%emt 0:04:21]} Qc7 {[%emt 0:02:07]} 14. b3 {[%emt 0:03:57]} a6 {[%emt 0:04:31]} 15. Bxc6 {[%emt 0:00:26]} bxc6 {[%emt 0:03:22]} 16. c5 {[%emt 0:01:15]} f5 {[%emt 0:03:24]} 17. b4 {[%emt 0:00:28]} a5 {[%emt 0:01:02]} 18. a3 {[%emt 0:02:11]} Rd8 {[%emt 0:07:20]} 19. Rxd8+ {[%emt 0:02:31]} Bxd8 {[%emt 0:00:37]} 20. Rd1 {[%emt 0:00:27]} Bf6 {[%emt 0:02:05]} 21. Ne2 {[%emt 0:02:02]} axb4 {[%emt 0:03:18]} 22. axb4 {[%emt 0:00:51]} Kf8 {[%emt 0:10:31]} 23. Ned4 {[%emt 0:02:07]} e5 {[%emt 0:01:20]} 24. Nc2 {[%emt 0:02:33]} Ra2 {[%emt 0:06:05]} 25. Qb3 {[%emt 0:01:58]} Qf7 {[%emt 0:00:27]} 26. Qxf7+ {[%emt 0:02:26]} Kxf7 {[%emt 0:05:02]} 27. Nfe1 {[%emt 0:00:08]} Ke7 {[%emt 0:02:00]} 28. Rd6 {[%emt 0:01:03]} Bb7 {[%emt 0:03:01]} 29. f3 {[%emt 0:02:01]} e4 {[%emt 0:02:08]} 30. fxe4 {[%emt 0:00:39]} fxe4 {[%emt 0:01:23]} 31. Rd2 {[%emt 0:01:22]} Ba6 {[%emt 0:02:13]} 32. Rd6 {[%emt 0:00:56]} Bb5 {[%emt 0:00:30]} 33. h3 {[%emt 0:04:24]} Be5 {[%emt 0:00:57]} 34. Rd1 {[%emt 0:01:15]} Ke6 {[%emt 0:08:22]} 35. Nd4+ {[%emt 0:01:43]} Bxd4+ {[%emt 0:00:22]} 36. Rxd4 {[%emt 0:00:07]} Re2 {[%emt 0:00:18]} 37. Rd1 {[%emt 0:00:21]} Ke5 {[%emt 0:00:56]} 38. Rc1 {[%emt 0:01:11]} Bd3 {[%emt 0:01:24]} 39. Kf1 {[%emt 0:02:21]} Rc2+ {[%emt 0:02:54]} 40. Nxd3+ {[%emt 0:00:09]} exd3 {[%emt 0:00:09]} 41. Rd1 {[%emt 0:00:16]} Kd4 {[%emt 0:00:11]} 42. Ke1 {[%emt 0:02:35]} Rxg2 {[%emt 0:00:59]} 43. Kf1 {[%emt 0:00:11]} Rh2 {[%emt 0:00:17]} 44. Kg1 {[%emt 0:00:03]} Rb2 {[%emt 0:00:27]} 45. Kf1 {[%emt 0:00:29]} Rxb4 {[%emt 0:00:59]} 46. Kf2 {[%emt 0:00:07]} Rb2+ {[%emt 0:00:25]} 47. Kf3 {[%emt 0:00:10]} Kc3 {[%emt 0:00:39]} 48. Ke3 {[%emt 0:00:24]} Re2+ {[%emt 0:00:10]} 49. Kf3 {[%emt 0:00:40]} Kc2 {[%emt 0:00:15]} 50. Ra1 {[%emt 0:00:12]} Re6 {[%emt 0:00:41]} 51. Ra2+ {[%emt 0:00:21]} Kb3 {[%emt 0:00:37]} 52. Rd2 {[%emt 0:00:06]} Kc3 {[%emt 0:00:10]} 53. Ra2 {[%emt 0:00:16]} d2 {[%emt 0:00:11]} 54. Ra3+ {[%emt 0:00:19]} Kc2 {[%emt 0:00:19]} 55. Ra2+ {[%emt 0:00:12]} Kc1 {[%emt 0:00:06]} 56. Ra1+ {[%emt 0:00:11]} Kb2 {[%emt 0:00:08]} 57. Rd1 {[%emt 0:00:06]} Kc2 {[%emt 0:00:13]} 58. Ra1 {[%emt 0:01:19]} d1=Q+ {[%emt 0:00:24]} 59. Rxd1 {[%emt 0:00:09]} Kxd1 {[%emt 0:00:22]} 60. Kf4 {[%emt 0:00:34]} Kd2 {[%emt 0:00:31]} 61. Kf5 {[%emt 0:01:28]} Re3 {[%emt 0:00:53]} 62. Kf4 {[%emt 0:00:08]} Rxh3 {[%emt 0:00:20]} 63. Ke5 {[%emt 0:00:06]} Rd3 {[%emt 0:00:14]} 64. Ke6 {[%emt 0:00:06]} h5 {[%emt 0:00:18]} 65. Kf5 {[%emt 0:00:09]} h4 {[%emt 0:00:10]} 66. Kg6 Rg3+ {[%emt 0:00:20]} 67. Kf5 {[%emt 0:00:19]} h3 {[%emt 0:00:08]} 68. Ke6 {[%emt 0:00:13]} Rd3 {[%emt 0:00:13]} 69. Kf7 {[%emt 0:00:17]} g5 {[%emt 0:00:18]} 70. Kf6 {[%emt 0:00:07]} g4 {[%emt 0:00:09]} 71. Kf5 {[%emt 0:00:08]} g3 {[%emt 0:00:11]} 72. Kg4 {[%emt 0:00:07]} g2 {[%emt 0:00:07]} 73. Kf4 {[%emt 0:00:05]} g1=Q {[%emt 0:00:14]} 74. Ke4 {[%emt 0:00:06]} Qg4+ {[%emt 0:01:35]} 75. Ke5 {[%emt 0:00:05]} Rd5+ {[%emt 0:01:01]} 76. Kf6 {[%emt 0:00:05]} Qf5+ {[%emt 0:00:23]} 77. Kg7 {[%emt 0:00:09]} Rd7+ {[%emt 0:00:14]} 78. Kg8 {[%emt 0:00:17]} Qh7+ {[%emt 0:00:20]} 79. Kf8 {[%emt 0:00:09]} Rd8# 0-1

[Event "POL-chT 2nd League Juniors 2020"]
[Site "Sypniewo"]
[Date "2020.10.23"]
[Round "1.5"]
[White "Filipska, Maja"]
[Black "Kudlak, Julia"]
[Result "0-1"]
[ECO "B33"]
[WhiteElo "1849"]
[BlackElo "1574"]
[Annotator "NA"]
[PlyCount "54"]
[EventDate "2020.10.23"]
[EventType "team-tourn"]
[EventCountry "POL"]
[SourceTitle "playchess.com"]
[Source "ChessBase"]
[SourceQuality "1"]
[TimeControl "5400+30"]

1. e4 {[%emt 0:00:00]} c5 {[%emt 0:00:00]} 2. Nf3 {[%emt 0:00:00]} Nc6 {[%emt 0:00:05]} 3. d4 {[%emt 0:00:00]} cxd4 {[%emt 0:00:11]} 4. Nxd4 {[%emt 0:00:04]} Nf6 {[%emt 0:00:49]} 5. Nc3 {[%emt 0:00:45]} e5 {[%emt 0:01:01]} 6. Ndb5 {[%emt 0:00:51]} d6 {[%emt 0:00:19]} 7. Bg5 {[%emt 0:00:44]} a6 {[%emt 0:01:05]} 8. Na3 {[%emt 0:00:05]} b5 {[%emt 0:00:56]} 9. Bxf6 {[%emt 0:03:30]} gxf6 {[%emt 0:02:09]} 10. Nd5 {[%emt 0:00:59]} Bg7 {[%emt 0:01:18]} 11. c4 {[%emt 0:06:11]} Nd4 {[%emt 0:05:21]} 12. cxb5 {[%emt 0:07:42]} f5 {[%emt 0:03:52]} 13. Bd3 {[%emt 0:16:03] B33: Sicilian: Pelikan and Sveshnikov Variations.} fxe4 {[%emt 0:08:12]} 14. Bxe4 {[%emt 0:01:27]} O-O {[%emt 0:02:44] [#]} 15. Nf6+ $146 {[%emt 0:09:14]} ({Predecessor:} 15. O-O Rb8 16. Nb4 Be6 17. Nc6 Nxc6 18. bxc6 Rxb2 19. Bd5 e4 20. Rb1 Rxb1 21. Nxb1 {½-½ (35) Berecz,G (2297)-Flyckt Olsen,J (2504) ICCF email 2007}) 15... Qxf6 {[%emt 0:03:35]} 16. Bxa8 {[%emt 0:00:17] [#]} Be6 {[%emt 0:06:01]} ({Don't play} 16... axb5 17. O-O $15) ({Better is} 16... Qg6 $1 $17 17. Bd5 e4) 17. Bc6 {[%emt 0:04:37]} Qg6 {[%emt 0:10:56]} 18. O-O {[%emt 0:11:01]} e4 {[%emt 0:08:24]} 19. Kh1 {[%emt 0:08:11]} d5 {[%emt 0:05:19]} 20. Nc2 {[%emt 0:04:19]} Bg4 {[%emt 0:05:24] [#]} 21. Qd2 $19 {[%emt 0:04:33]} (21. Qc1 $1 $16 {and life is bright.}) 21... Nf3 {[%emt 0:06:57]} 22. Qe3 {[%emt 0:14:29]} Qh5 {[%emt 0:01:49]} 23. h3 {[%emt 0:01:29]} Bxh3 {[%emt 0:02:07]} 24. gxf3 {[%emt 0:00:28]} Bg4+ {[%emt 0:01:02]} 25. Kg2 {[%emt 0:00:51]} Qh3+ {[%emt 0:00:21]} 26. Kg1 {[%emt 0:00:27]} Bxf3 {[%emt 0:00:21]} 27. Qxf3 {[%emt 0:00:17]} exf3 {[%emt 0:00:11]} 0-1